bitfinex-derivatives/quotes_BNBF0:USTF0_20250807
["timestamp","ask_amount","ask_price","bid_price","bid_amount"]
[1754586137903,0.86545203,773.04,771.9,0.22522085]
[1754586138103,0.86545203,773.05,771.9,0.22522085]
[1754586138302,0.86545203,773.16,771.9,0.22522085]
[1754586138603,0.86545203,773.13,771.9,0.22522085]
[1754586138803,0.85398275,773.12,771.9,0.22522085]
[1754586139003,0.86545203,773.13,771.9,0.22522085]
[1754586139302,0.85386272,773.12,771.9,0.22522085]
[1754586139499,0.85386272,773.11,771.9,0.22522085]
[1754586139803,0.85386272,773.1,771.9,0.22522085]
[1754586140002,0.85386272,773.09,771.9,0.22522085]
[1754586140301,0.85386272,773.08,771.9,0.22522085]
[1754586140500,0.85386272,773.07,771.9,0.22522085]
[1754586140704,0.85386272,773.06,771.9,0.22522085]
[1754586140901,0.85386272,773.05,771.9,0.22522085]
[1754586141101,0.85386272,773.04,771.9,0.22522085]
[1754586141304,0.85386272,773.03,771.9,0.22522085]
[1754586141603,0.85386272,773.02,771.9,0.22522085]
[1754586141901,0.921,773.26,771.9,0.22522085]
[1754586141902,0.86545203,773.14,771.9,0.22522085]
[1754586142103,0.8529868,773.13,771.9,0.22522085]
[1754586142306,0.8529868,773.12,771.9,0.22522085]
[1754586142503,0.8529868,773.11,771.9,0.22522085]
[1754586142805,0.86545203,773.17,771.9,0.22522085]
[1754586143002,0.85286565,773.16,771.9,0.22522085]
[1754586143205,0.85286565,773.15,771.9,0.22522085]
[1754586143402,0.85286565,773.14,771.9,0.22522085]
[1754586143604,0.85286565,773.13,771.9,0.22522085]
[1754586143803,0.85286565,773.12,771.9,0.22522085]
[1754586144004,0.85286565,773.11,771.9,0.22522085]
[1754586144204,0.85286565,773.1,771.9,0.22522085]
[1754586144504,0.85286565,773.09,771.9,0.22522085]
[1754586144807,0.85286565,773.08,771.9,0.22522085]
[1754586145103,0.85286565,773.07,771.9,0.22522085]
[1754586145308,0.85286565,773.06,771.9,0.22522085]
[1754586145608,0.85286565,773.05,771.9,0.22522085]
[1754586145804,0.85286565,773.04,771.9,0.22522085]
[1754586146107,0.85286565,773.03,771.9,0.22522085]
[1754586146307,0.85286565,773.02,771.9,0.22522085]
[1754586146604,0.85286565,773.01,771.9,0.22522085]
[1754586146808,0.85286565,773.0,771.9,0.22522085]
[1754586147004,0.85286565,772.99,771.9,0.22522085]
[1754586147206,0.85286565,772.98,771.9,0.22522085]
[1754586147503,0.85286565,772.97,771.9,0.22522085]
[1754586147704,0.921,773.26,771.9,0.22522085]
[1754586147903,0.85044226,773.25,771.9,0.22522085]
[1754586148205,0.85044226,773.24,771.9,0.22522085]
[1754586148406,0.85044226,773.23,771.9,0.22522085]
[1754586148609,0.85044226,773.22,771.9,0.22522085]
[1754586148806,0.85044226,773.21,771.9,0.22522085]
[1754586149007,0.85044226,773.2,771.9,0.22522085]
[1754586149309,0.85044226,773.19,771.9,0.22522085]
[1754586149508,0.85044226,773.18,771.9,0.22522085]
[1754586149709,0.85044226,773.17,771.9,0.22522085]
[1754586149913,0.85044226,773.16,771.9,0.22522085]
[1754586150110,0.85044226,773.15,771.9,0.22522085]
[1754586150310,0.85044226,773.14,771.9,0.22522085]
[1754586150510,0.85044226,773.13,771.9,0.22522085]
[1754586150812,0.84931426,773.12,771.9,0.22522085]
[1754586151113,0.84931426,773.11,771.9,0.22522085]
[1754586151310,0.84931426,773.1,771.9,0.22522085]
[1754586151511,0.84931426,773.09,771.9,0.22522085]
[1754586151710,0.84931426,773.08,771.9,0.22522085]
[1754586151913,0.84931426,773.07,771.9,0.22522085]
[1754586152113,0.84931426,773.06,771.9,0.22522085]
[1754586152311,0.84931426,773.05,771.9,0.22522085]
[1754586152610,0.84931426,773.04,771.9,0.22522085]
[1754586152810,0.84931426,773.03,771.9,0.22522085]
[1754586153015,0.84931426,773.02,771.9,0.22522085]
[1754586153311,0.84931426,773.01,771.9,0.22522085]
[1754586153513,0.84931426,773.0,771.9,0.22522085]
[1754586153714,0.84931426,772.99,771.9,0.22522085]
[1754586154011,0.84931426,772.98,771.9,0.22522085]
[1754586154215,1.126,773.1,771.9,0.22522085]
[1754586154514,0.84909792,773.09,771.9,0.22522085]
[1754586154711,1.126,773.1,771.94,0.86983846]
[1754586155112,1.126,773.1,771.9,0.22522085]
[1754586157712,1.007,773.09,771.9,0.22522085]
[1754586158316,1.007,773.09,771.9,1.09505931]
[1754586160525,1.007,773.09,771.91,0.86983846]
[1754586160716,1.007,773.09,772.02,0.86983846]
[1754586160915,1.007,773.09,772.08,0.86983846]
[1754586161621,1.007,773.09,772.14,0.86983846]
[1754586161819,1.007,773.09,771.95,1.13835677]
[1754586161820,1.007,773.09,772.13,0.86983846]
[1754586162321,1.007,773.09,772.21,0.86983846]
[1754586164320,1.007,773.09,772.22,0.86983846]
[1754586166421,1.007,773.09,772.23,0.86983846]
[1754586168322,1.007,773.09,772.22,0.86983846]
[1754586168524,1.007,773.09,772.17,0.86983846]
[1754586169123,1.007,773.09,772.18,0.86983846]
[1754586169321,1.007,773.09,772.19,0.86983846]
[1754586170223,1.007,773.09,772.2,0.86983846]
[1754586170423,1.007,773.09,772.19,0.86983846]
[1754586171829,1.007,773.09,772.23,0.86983846]
[1754586172427,1.007,773.09,772.31,0.86983846]
[1754586173329,1.007,773.09,772.33,0.86983846]
[1754586173524,1.007,773.09,772.34,0.86983846]
[1754586174225,1.007,773.09,772.36,0.86983846]
[1754586174429,1.007,773.09,772.39,0.86983846]
[1754586175324,1.007,773.09,772.4,0.86983846]
[1754586175724,1.007,773.09,772.39,0.86983846]
[1754586176323,1.007,773.09,772.01,1.70753516]
[1754586176324,1.007,773.09,772.4,0.86983846]
[1754586176929,1.007,773.09,772.39,0.86983846]
[1754586177430,1.007,773.09,772.4,0.86983846]
[1754586178127,1.007,773.09,772.36,0.86983846]
[1754586178427,1.007,773.09,772.32,0.86983846]
[1754586179431,1.007,773.09,772.33,0.86983846]
[1754586180131,1.007,773.09,772.32,0.86983846]
[1754586180832,1.007,773.09,772.34,0.86983846]
[1754586181026,1.007,773.09,772.35,0.86983846]
[1754586181429,1.007,773.09,772.37,0.86983846]
[1754586182329,1.007,773.09,772.38,0.86983846]
[1754586182633,1.007,773.09,772.39,0.86983846]
[1754586182933,1.007,773.09,772.4,0.86983846]
[1754586183133,1.007,773.09,772.41,0.86983846]
[1754586183628,1.007,773.09,772.5,0.86983846]
[1754586184331,1.007,773.09,772.51,0.86983846]
[1754586185530,1.007,773.09,772.52,0.86983846]
[1754586185734,1.007,773.09,772.53,0.86983846]
[1754586186234,1.007,773.09,772.51,0.86983846]
[1754586187130,1.007,773.09,772.5,0.86983846]
[1754586189330,1.007,773.09,772.49,0.86983846]
[1754586190134,1.007,773.09,772.52,0.86983846]
[1754586190331,1.007,773.09,772.53,0.86983846]
[1754586190532,1.007,773.09,772.55,0.86983846]
[1754586192638,1.007,773.09,772.56,0.86983846]
[1754586193234,1.007,773.09,772.55,0.86983846]
[1754586193433,1.007,773.09,772.57,0.86983846]
[1754586193634,1.007,773.09,772.6,0.86983846]
[1754586193838,1.007,773.09,772.59,0.86983846]
[1754586194237,1.007,773.09,772.58,0.86983846]
[1754586194939,1.007,773.09,772.59,0.86983846]
[1754586195140,1.007,773.09,772.56,0.86983846]
[1754586195541,1.007,773.09,772.55,0.86983846]
[1754586195741,0.86545203,774.04,772.56,0.86983846]
[1754586195943,0.84599907,774.03,772.56,0.86983846]
[1754586196242,0.84599907,774.02,772.67,0.86983846]
[1754586196439,0.84599907,774.02,772.48,1.13835677]
[1754586196440,0.84599907,774.01,772.7,0.86983846]
[1754586196638,0.84599907,774.0,772.7,0.86983846]
[1754586196844,0.84599907,773.99,772.69,0.86983846]
[1754586197140,0.84599907,773.98,772.69,0.86983846]
[1754586197439,0.84599907,773.97,772.69,0.86983846]
[1754586197741,0.84599907,773.96,772.69,0.86983846]
[1754586197942,0.84599907,773.95,772.69,0.86983846]
[1754586198139,0.84599907,773.94,772.69,0.86983846]
[1754586198341,1.211,773.99,772.7,0.86983846]
[1754586198342,0.84599907,773.93,772.7,0.86983846]
[1754586198642,0.84828379,773.92,772.7,0.86983846]
[1754586198947,0.84828379,773.91,772.7,0.86983846]
[1754586199148,0.84828379,773.9,772.72,0.86983846]
[1754586199342,0.84828379,773.89,772.72,0.86983846]
[1754586199648,0.84828379,773.88,772.7,0.86983846]
[1754586199843,0.84828379,773.88,772.71,0.86983846]
[1754586200048,0.84828379,773.88,772.72,0.86983846]
[1754586200244,0.84828379,773.88,772.71,0.86983846]
[1754586200545,0.84828379,773.88,772.75,0.86983846]
[1754586201145,0.84828379,773.88,772.78,0.86983846]
[1754586201349,0.84828379,773.88,772.81,0.86983846]
[1754586201650,0.84828379,773.88,772.88,0.86983846]
[1754586201849,0.84828379,773.88,772.89,0.86983846]
[1754586202452,0.84828379,773.88,772.9,0.86983846]
[1754586203252,0.8479283,773.87,772.9,0.86983846]
[1754586203547,0.8479283,773.86,772.88,0.86983846]
[1754586203753,0.8479283,773.85,772.88,0.86983846]
[1754586203953,0.8479283,773.84,772.88,0.86983846]
[1754586204253,0.99,773.89,772.9,0.86983846]
[1754586204451,0.847949,773.88,772.91,0.86983846]
[1754586204749,0.847949,773.87,772.92,0.86983846]
[1754586204953,0.847949,773.86,772.92,0.86983846]
[1754586205254,0.99,773.89,772.93,0.86983846]
[1754586205547,0.99,773.89,772.91,0.86983846]
[1754586206049,0.99,773.89,772.9,0.86983846]
[1754586206253,0.99,773.89,772.92,0.86983846]
[1754586206549,0.99,773.89,772.91,0.86983846]
[1754586206754,0.99,773.89,772.84,0.86983846]
[1754586206949,0.84809075,773.88,772.8,0.86983846]
[1754586207250,0.84809075,773.87,772.83,0.86983846]
[1754586207455,0.84846029,773.88,772.77,0.86983846]
[1754586207649,0.84846029,773.87,772.77,0.86983846]
[1754586207954,0.84846029,773.87,772.58,1.13835677]
[1754586207955,0.84846227,773.86,772.8,0.86983846]
[1754586208150,0.84846227,773.85,772.8,0.86983846]
[1754586208350,0.84846227,773.84,772.82,0.86983846]
[1754586208654,0.84846227,773.83,772.82,0.86983846]
[1754586208855,0.84846227,773.82,772.82,0.86983846]
[1754586209053,0.84846227,773.81,772.82,0.86983846]
[1754586209251,0.84846227,773.8,772.83,0.86983846]
[1754586209455,0.84846227,773.79,772.83,0.86983846]
[1754586209751,0.84946984,773.78,772.83,0.86983846]
[1754586209955,0.99,773.89,772.85,0.86983846]
[1754586210157,0.84947662,773.88,772.85,0.86983846]
[1754586210357,0.85007412,773.87,772.86,0.86983846]
[1754586210656,0.85007412,773.86,772.86,0.86983846]
[1754586210857,0.85007412,773.85,772.88,0.86983846]
[1754586211058,0.99,773.89,771.9,0.22522085]
[1754586211059,0.85007412,773.84,772.89,0.86983846]
[1754586211358,0.99,773.89,772.94,0.86983846]
[1754586211558,0.85072528,773.88,772.94,0.86983846]
[1754586211756,0.85072528,773.87,773.03,0.86983846]
[1754586211955,0.85064493,773.86,772.96,0.86983846]
[1754586212158,0.85057513,773.85,772.96,0.86983846]
[1754586212359,0.85057513,773.84,772.88,0.86983846]
[1754586212553,0.85057513,773.83,772.87,0.86983846]
[1754586212758,0.99,773.89,772.87,0.86983846]
[1754586212957,0.85118841,773.88,772.87,0.86983846]
[1754586213156,0.85118841,773.87,772.89,0.86983846]
[1754586213360,0.85118841,773.86,772.89,0.86983846]
[1754586213558,0.85118841,773.85,772.89,0.86983846]
[1754586213857,0.99,773.89,772.88,0.86983846]
[1754586214158,0.99,773.89,771.9,0.22522085]
[1754586214159,0.8519556,773.88,772.9,0.86983846]
[1754586214362,0.8519556,773.87,772.92,0.86983846]
[1754586214562,0.8519556,773.86,772.92,0.86983846]
[1754586214763,0.99,773.89,772.92,0.86983846]
[1754586214960,0.85245799,773.88,772.92,0.86983846]
[1754586215163,0.85245799,773.87,772.93,0.86983846]
[1754586215359,0.85245799,773.86,772.93,0.86983846]
[1754586215660,0.99,773.89,772.93,0.86983846]
[1754586215863,0.85274162,773.88,772.94,0.86983846]
[1754586216159,0.85266409,773.87,772.95,0.86983846]
[1754586216364,0.85266409,773.86,772.95,0.86983846]
[1754586216664,0.99,773.89,772.93,0.86983846]
[1754586216861,0.85284708,773.88,772.93,0.86983846]
[1754586217164,0.99,773.89,772.94,0.86983846]
[1754586217364,0.99,773.89,771.9,0.22522085]
[1754586217365,0.85296967,773.88,772.96,0.86983846]
[1754586217565,0.99,773.89,772.96,0.86983846]
[1754586217865,0.85296967,773.88,772.96,0.86983846]
[1754586218162,0.99,773.89,772.97,0.86983846]
[1754586218462,0.85312177,773.88,772.97,0.86983846]
[1754586218666,0.99,773.89,772.97,0.86983846]
[1754586218866,0.85309825,773.88,772.97,0.86983846]
[1754586219167,0.85309825,773.88,772.96,0.86983846]
[1754586219366,0.85309825,773.88,771.9,0.22522085]
[1754586219367,0.85309825,773.88,772.97,0.86983846]
[1754586221264,0.85309825,773.88,772.98,0.86983846]
[1754586221669,0.85309825,773.88,772.99,0.86983846]
[1754586221866,0.85309825,773.88,773.03,0.86983846]
[1754586222867,0.85309825,773.88,773.04,0.86983846]
[1754586223371,0.85309825,773.88,773.06,0.86983846]
[1754586223670,0.85309825,773.88,773.07,0.86983846]
[1754586224473,0.85309825,773.88,773.08,0.86983846]
[1754586225074,0.85367705,773.87,773.08,0.86983846]
[1754586225274,0.85367705,773.86,773.08,0.86983846]
[1754586225472,0.85367705,773.85,773.08,0.86983846]
[1754586225673,0.85367705,773.84,773.08,0.86983846]
[1754586225876,0.85367705,773.83,773.09,0.86983846]
[1754586226072,0.99,773.89,773.09,0.86983846]
[1754586226276,0.85384611,773.88,773.1,0.86983846]
[1754586226476,0.85384611,773.87,773.08,0.86983846]
[1754586226674,0.85384611,773.86,773.09,0.86983846]
[1754586226873,0.99,773.89,773.09,0.86983846]
[1754586227072,0.85393997,773.88,773.09,0.86983846]
[1754586227277,0.85393997,773.87,773.13,0.86983846]
[1754586227579,0.85494118,773.86,773.12,0.86983846]
[1754586227872,0.99,773.89,773.12,0.86983846]
[1754586228073,0.85501482,773.88,773.12,0.86983846]
[1754586228277,0.85501482,773.87,773.13,0.86983846]
[1754586228574,0.85501482,773.86,773.12,0.86983846]
[1754586228877,0.85501482,773.85,773.12,0.86983846]
[1754586229073,1.211,773.99,773.12,0.86983846]
[1754586229275,0.85498526,773.98,773.11,0.86983846]
[1754586229479,0.85498526,773.97,773.11,0.86983846]
[1754586229679,0.85498526,773.96,773.12,0.86983846]
[1754586229881,0.85498526,773.95,773.11,0.86983846]
[1754586230176,0.85498526,773.94,773.11,0.86983846]
[1754586230380,0.85498526,773.93,773.12,0.86983846]
[1754586230680,0.85498526,773.92,773.12,0.86983846]
[1754586230875,0.85498526,773.91,773.12,0.86983846]
[1754586231079,0.85498526,773.9,773.12,0.86983846]
[1754586231278,0.85498526,773.89,773.12,0.86983846]
[1754586231481,0.85498526,773.88,773.12,0.86983846]
[1754586231681,0.85498526,773.87,773.12,0.86983846]
[1754586232283,0.85498526,773.87,773.13,0.86983846]
[1754586233484,0.996,773.88,773.13,0.86983846]
[1754586233785,0.85503039,773.87,773.13,0.86983846]
[1754586233982,0.85503039,773.86,773.12,0.86983846]
[1754586234182,0.85503039,773.87,773.13,0.86983846]
[1754586234584,0.85503039,773.87,773.14,0.86983846]
[1754586235184,0.85503039,773.87,773.13,0.86983846]
[1754586235378,0.85503039,773.87,773.14,0.86983846]
[1754586236488,0.85503039,773.87,773.15,0.86983846]
[1754586237288,0.85503039,773.87,773.16,0.86983846]
[1754586237688,1.172,773.86,773.16,0.86983846]
[1754586237883,0.85503039,773.85,773.16,0.86983846]
[1754586238188,0.85503039,773.85,773.17,0.86983846]
[1754586238584,0.85503039,773.85,773.16,0.86983846]
[1754586239185,0.85503039,773.85,773.17,0.86983846]
[1754586239587,0.85503039,773.85,773.18,0.86983846]
[1754586241284,1.172,773.86,773.19,0.86983846]
[1754586241487,0.85574309,773.85,773.19,0.86983846]
[1754586241689,0.85574309,773.84,773.19,0.86983846]
[1754586241889,0.85574309,773.83,773.19,0.86983846]
[1754586242089,1.172,773.86,773.19,0.86983846]
[1754586242392,0.85618779,773.85,773.2,0.86983846]
[1754586243593,0.85618779,773.85,773.21,0.86983846]
[1754586244389,0.85618779,773.85,773.18,0.86983846]
[1754586245290,0.85618779,773.85,773.19,0.86983846]
[1754586246392,1.172,773.86,773.19,0.86983846]
[1754586246593,1.172,773.86,773.18,0.86983846]
[1754586247393,1.172,773.86,773.19,0.86983846]
[1754586248193,1.172,773.86,773.2,0.86983846]
[1754586248390,0.85690827,773.85,773.2,0.86983846]
[1754586248595,1.172,773.86,773.18,0.86983846]
[1754586248790,0.85689551,773.85,773.18,0.86983846]
[1754586248990,0.85689551,773.84,773.18,0.86983846]
[1754586249193,0.85689551,773.83,773.18,0.86983846]
[1754586249391,0.85689551,773.82,773.2,0.86983846]
[1754586249594,0.85689551,773.81,773.21,0.86983846]
[1754586249895,1.172,773.86,773.2,0.86983846]
[1754586250092,0.85695333,773.85,773.2,0.86983846]
[1754586250396,0.85714968,773.84,773.21,0.86983846]
[1754586250597,0.85714968,773.83,773.21,0.86983846]
[1754586250796,0.85714968,773.82,773.21,0.86983846]
[1754586250997,1.172,773.86,773.2,0.86983846]
[1754586250998,0.85714968,773.81,773.2,0.86983846]
[1754586251298,0.85714968,773.8,773.2,0.86983846]
[1754586251498,0.85714968,773.79,773.16,0.86983846]
[1754586251700,0.85714968,773.78,773.14,0.86983846]
[1754586251900,0.85714968,773.77,773.14,0.86983846]
[1754586252096,0.85714968,773.76,773.14,0.86983846]
[1754586252300,0.85714968,773.75,773.16,0.86983846]
[1754586252500,0.85714968,773.74,773.13,0.86983846]
[1754586252701,0.85714968,773.73,773.09,0.86983846]
[1754586252897,0.85714968,773.72,773.09,0.86983846]
[1754586253101,0.85714968,773.71,773.09,0.86983846]
[1754586253302,0.85714968,773.7,773.11,0.86983846]
[1754586253503,0.85714968,773.69,773.11,0.86983846]
[1754586253800,0.85714968,773.68,773.13,0.86983846]
[1754586253999,0.85714968,773.67,773.14,0.86983846]
[1754586254199,0.86545203,773.85,772.78,1.70753516]
[1754586254200,0.85714968,773.66,773.16,0.86983846]
[1754586254400,0.85714968,773.65,773.16,0.86983846]
[1754586254602,0.85714968,773.64,773.16,0.86983846]
[1754586254802,0.85714968,773.63,773.16,0.86983846]
[1754586255006,0.85714968,773.62,773.16,0.86983846]
[1754586255208,0.85714968,773.61,773.17,0.86983846]
[1754586255408,0.85714968,773.6,773.18,0.86983846]
[1754586255706,0.85714968,773.59,773.18,0.86983846]
[1754586255903,0.85714968,773.58,773.04,0.86983846]
[1754586256104,0.85714968,773.57,772.99,0.86983846]
[1754586256306,0.85714968,773.56,772.99,0.86983846]
[1754586256506,0.85714968,773.55,772.98,0.86983846]
[1754586256707,0.85714968,773.54,772.98,0.86983846]
[1754586257003,0.85714968,773.53,772.98,0.86983846]
[1754586257305,0.85714968,773.52,772.91,0.86983846]
[1754586257505,0.85714968,773.51,772.91,0.86983846]
[1754586257702,0.86545203,773.63,772.91,0.86983846]
[1754586258003,0.85815805,773.62,772.91,0.86983846]
[1754586258208,0.85815805,773.61,772.91,0.86983846]
[1754586258407,0.86545203,773.65,772.9,0.86983846]
[1754586258607,0.85809717,773.64,772.9,0.86983846]
[1754586258805,0.85809717,773.63,772.9,0.86983846]
[1754586259004,0.85800909,773.62,772.9,0.86983846]
[1754586259206,0.85800909,773.61,772.91,0.86983846]
[1754586259405,0.85800909,773.6,772.9,0.86983846]
[1754586259608,0.85800909,773.59,772.9,0.86983846]
[1754586259909,0.85800909,773.58,772.93,0.86983846]
[1754586260104,0.85800909,773.57,772.93,0.86983846]
[1754586260310,0.85800909,773.56,772.91,0.86983846]
[1754586260510,0.85800909,773.55,772.91,0.86983846]
[1754586260806,0.85800909,773.54,772.91,0.86983846]
[1754586261006,0.85800909,773.53,772.91,0.86983846]
[1754586261206,0.86545203,773.68,772.91,0.86983846]
[1754586261406,0.85745563,773.67,772.9,0.86983846]
[1754586261606,0.85745563,773.66,772.9,0.86983846]
[1754586261810,0.85745563,773.65,772.91,0.86983846]
[1754586262007,0.85745563,773.64,772.91,0.86983846]
[1754586262307,0.85745563,773.63,772.91,0.86983846]
[1754586262607,0.85745563,773.62,772.9,0.86983846]
[1754586262809,0.85745563,773.61,772.9,0.86983846]
[1754586263008,0.86545203,773.67,772.9,0.86983846]
[1754586263009,0.85745563,773.6,772.9,0.86983846]
[1754586263207,0.85745563,773.59,772.9,0.86983846]
[1754586263412,0.86545203,773.66,772.91,0.86983846]
[1754586263609,0.85718739,773.65,772.91,0.86983846]
[1754586263910,0.85718739,773.64,772.92,0.86983846]
[1754586264113,0.85718739,773.63,772.92,0.86983846]
[1754586264408,0.85718739,773.62,772.92,0.86983846]
[1754586264607,0.85718739,773.61,772.92,0.86983846]
[1754586264812,0.85718739,773.6,772.92,0.86983846]
[1754586265013,0.85718739,773.59,772.92,0.86983846]
[1754586265209,0.85718739,773.58,772.92,0.86983846]
[1754586265414,0.85718739,773.57,772.91,0.86983846]
[1754586265612,0.85718739,773.56,772.92,0.86983846]
[1754586265912,0.85718739,773.55,772.92,0.86983846]
[1754586266213,0.85718739,773.54,772.92,0.86983846]
[1754586266413,0.85718739,773.53,772.91,0.86983846]
[1754586266715,0.85718739,773.52,772.87,0.86983846]
[1754586267013,1.11,773.55,772.87,0.86983846]
[1754586267014,0.85718739,773.51,772.87,0.86983846]
[1754586267210,0.85718739,773.51,772.86,0.86983846]
[1754586267410,0.85687313,773.5,772.86,0.86983846]
[1754586267613,0.85687313,773.49,772.86,0.86983846]
[1754586267814,1.11,773.55,772.86,0.86983846]
[1754586268114,0.85677255,773.54,772.86,0.86983846]
[1754586268315,0.85677255,773.53,772.85,0.86983846]
[1754586268612,0.85677255,773.52,772.85,0.86983846]
[1754586268815,0.85677255,773.51,772.85,0.86983846]
[1754586269015,0.85677255,773.5,772.85,0.86983846]
[1754586269214,1.11,773.55,772.85,0.86983846]
[1754586269413,0.85649255,773.54,772.83,0.86983846]
[1754586269617,0.85649255,773.53,772.83,0.86983846]
[1754586269917,0.85649255,773.52,772.83,0.86983846]
[1754586270116,0.85649255,773.51,772.83,0.86983846]
[1754586270412,0.85649255,773.5,772.82,0.86983846]
[1754586270712,0.85649255,773.49,772.79,0.86983846]
[1754586270912,0.85649255,773.48,772.79,0.86983846]
[1754586271114,0.85649255,773.47,772.79,0.86983846]
[1754586271312,1.11,773.55,772.78,0.86983846]
[1754586271511,0.85621943,773.54,772.78,0.86983846]
[1754586271814,0.85621943,773.53,772.78,0.86983846]
[1754586272017,0.85621943,773.52,772.78,0.86983846]
[1754586272217,0.85621943,773.51,772.78,0.86983846]
[1754586272413,0.85621943,773.5,772.75,0.86983846]
[1754586272617,0.85621943,773.49,772.75,0.86983846]
[1754586272918,0.85621943,773.48,772.75,0.86983846]
[1754586273114,1.11,773.55,772.75,0.86983846]
[1754586273314,0.85590344,773.54,772.75,0.86983846]
[1754586273517,0.85590344,773.53,772.76,0.86983846]
[1754586273715,0.85590344,773.52,772.76,0.86983846]
[1754586273918,0.85590344,773.51,772.76,0.86983846]
[1754586274118,0.85590344,773.5,772.76,0.86983846]
[1754586274419,0.85590344,773.49,772.75,0.86983846]
[1754586274615,0.85590344,773.48,772.75,0.86983846]
[1754586274819,0.85590344,773.47,772.75,0.86983846]
[1754586275020,1.11,773.55,772.75,0.86983846]
[1754586275221,0.8556187,773.54,772.75,0.86983846]
[1754586275419,0.8556187,773.53,772.74,0.86983846]
[1754586275717,0.8556187,773.52,772.74,0.86983846]
[1754586275917,0.85556795,773.51,772.76,0.86983846]
[1754586276116,0.85556795,773.5,772.76,0.86983846]
[1754586276316,0.855491,773.49,772.76,0.86983846]
[1754586276521,0.855491,773.48,772.75,0.86983846]
[1754586276717,0.855491,773.47,772.75,0.86983846]
[1754586276921,0.855491,773.46,772.75,0.86983846]
[1754586277121,1.11,773.55,772.75,0.86983846]
[1754586277318,0.85542652,773.54,772.75,0.86983846]
[1754586277522,0.85542652,773.53,772.75,0.86983846]
[1754586277817,0.85542652,773.52,772.75,0.86983846]
[1754586278020,0.85542652,773.51,772.75,0.86983846]
[1754586278221,0.85542652,773.5,772.75,0.86983846]
[1754586278521,0.85542652,773.49,772.75,0.86983846]
[1754586278821,1.11,773.55,772.7,0.86983846]
[1754586279623,1.11,773.55,772.8,0.86983846]
[1754586279821,1.11,773.55,772.87,0.86983846]
[1754586281718,1.11,773.55,772.89,0.86983846]
[1754586282618,1.11,773.55,772.9,0.86983846]
[1754586283020,1.11,773.55,772.91,0.86983846]
[1754586283225,1.11,773.55,772.94,0.86983846]
[1754586283421,1.11,773.55,772.95,0.86983846]
[1754586283921,0.921,773.54,772.98,0.86983846]
[1754586284120,0.921,773.54,773.02,0.86983846]
[1754586284320,0.921,773.54,773.06,0.86983846]
[1754586284520,0.921,773.54,773.07,0.86983846]
[1754586284721,0.921,773.54,773.06,0.86983846]
[1754586286825,0.921,773.54,773.07,0.86983846]
[1754586288025,0.921,773.54,773.06,0.86983846]
[1754586288221,0.921,773.54,773.07,0.86983846]
[1754586288423,0.921,773.54,773.08,0.86983846]
[1754586288722,0.921,773.54,773.11,0.86983846]
[1754586288921,0.921,773.54,773.08,0.86983846]
[1754586289222,0.921,773.54,773.1,0.86983846]
[1754586293231,0.921,773.54,773.01,0.86983846]
[1754586293527,0.921,773.54,773.0,0.86983846]
[1754586296331,0.921,773.54,773.01,0.86983846]
[1754586298840,0.921,773.54,773.03,0.86983846]
[1754586299438,0.849,773.53,773.03,0.86983846]
[1754586300441,0.849,773.53,773.04,0.86983846]
[1754586301138,0.849,773.53,773.0,0.86983846]
[1754586301437,0.849,773.53,772.99,0.86983846]
[1754586301642,0.849,773.53,773.02,0.86983846]
[1754586305443,0.849,773.53,773.03,0.86983846]
[1754586305642,0.849,773.53,773.07,0.86983846]
[1754586306044,0.849,773.53,773.08,0.86983846]
[1754586306541,0.849,773.53,773.07,0.86983846]
[1754586309542,0.849,773.53,773.08,0.86983846]
[1754586309846,0.849,773.53,773.07,0.86983846]
[1754586310042,0.849,773.53,773.08,0.86983846]
[1754586310643,0.921,773.54,773.05,0.86983846]
[1754586310846,0.921,773.54,773.04,0.86983846]
[1754586311247,0.921,773.54,773.05,0.86983846]
[1754586311649,0.921,773.54,773.02,0.86983846]
[1754586312750,0.865,773.53,773.02,0.86983846]
[1754586316850,0.865,773.53,773.0,0.86983846]
[1754586317749,0.865,773.53,773.01,0.86983846]
[1754586318052,0.865,773.53,773.04,0.86983846]
[1754586318749,0.865,773.53,773.06,0.86983846]
[1754586319352,0.865,773.53,773.07,0.86983846]
[1754586319652,0.865,773.53,773.08,0.86983846]
[1754586320248,0.865,773.53,773.07,0.86983846]
[1754586320453,0.865,773.53,773.09,0.86983846]
[1754586320653,0.865,773.53,772.94,1.13835677]
[1754586320654,0.865,773.53,773.08,0.86983846]
[1754586324057,0.865,773.53,773.07,0.86983846]
[1754586324655,0.865,773.53,773.09,0.86983846]
[1754586328258,0.865,773.53,773.1,0.86983846]
[1754586329358,0.865,773.53,773.11,0.86983846]